[Event "Titled Tuesday Blitz February 28 Early 2023"]
[White "Orlov, Georgi"]
[Black "Bharath Subramaniyam H"]
[WhiteFideId "2011271"]
[BlackFideId "46634827"]
[WhiteElo "2656"]
[BlackElo "2395"]
[Result "0-1"]
[Round "10"]
[TimeControl "180+2"]
[Date "2023.02.28"]
[WhiteClock "0:00:02"]
[BlackClock "0:00:12"]

1. d4 {[%clk 0:03:00]}  Nf6 {[%clk 0:02:57]} 2. Nf3 {[%clk 0:03:00]}  e6 {[%clk 0:02:58]} 3. c4 {[%clk 0:03:00]}  c5 {[%clk 0:02:58]} 4. Nc3 {[%clk 0:02:58]}  g6 {[%clk 0:02:55]} 5. e4 {[%clk 0:02:55]}  cxd4 {[%clk 0:02:53]} 6. Nxd4 {[%clk 0:02:54]}  d6 {[%clk 0:02:54]} 7. Bg5 {[%clk 0:02:51]}  a6 {[%clk 0:02:52]} 8. Qd2 {[%clk 0:02:45]}  Bg7 {[%clk 0:02:50]} 9. O-O-O {[%clk 0:02:37]}  O-O {[%clk 0:02:50]} 10. Nf3 {[%clk 0:02:35]}  Nc6 {[%clk 0:02:34]} 11. Qxd6 {[%clk 0:02:09]}  Qxd6 {[%clk 0:02:33]} 12. Rxd6 {[%clk 0:02:09]}  Ng4 {[%clk 0:02:23]} 13. Bh4 {[%clk 0:02:06]}  Nce5 {[%clk 0:02:07]} 14. Be2 {[%clk 0:02:04]}  b5 {[%clk 0:01:52]} 15. cxb5 {[%clk 0:01:55]}  axb5 {[%clk 0:01:52]} 16. Bxb5 {[%clk 0:01:55]}  Nxf3 {[%clk 0:01:49]} 17. gxf3 {[%clk 0:01:53]}  Be5 {[%clk 0:01:47]} 18. Rd3 {[%clk 0:01:30]}  Bf4+ {[%clk 0:01:39]} 19. Kb1 {[%clk 0:01:29]}  Ne5 {[%clk 0:01:39]} 20. Rdd1 {[%clk 0:01:24]}  Nxf3 {[%clk 0:01:37]} 21. Be7 {[%clk 0:01:23]}  Bb7 {[%clk 0:01:26]} 22. Bxf8 {[%clk 0:01:23]}  Rxf8 {[%clk 0:01:27]} 23. Rd7 {[%clk 0:01:19]}  Bc8 {[%clk 0:01:25]} 24. Ra7 {[%clk 0:01:15]}  Nxh2 {[%clk 0:01:22]} 25. Ne2 {[%clk 0:01:10]}  Bb8 {[%clk 0:01:22]} 26. Ra8 {[%clk 0:01:09]}  Bb7 {[%clk 0:01:22]} 27. Rxb8 {[%clk 0:01:06]}  Bxe4+ {[%clk 0:01:22]} 28. Kc1 {[%clk 0:01:07]}  Bxh1 {[%clk 0:01:22]} 29. Rxf8+ {[%clk 0:01:05]}  Kxf8 {[%clk 0:01:22]} 30. a4 {[%clk 0:01:06]}  Ke7 {[%clk 0:01:20]} 31. a5 {[%clk 0:01:05]}  Kd6 {[%clk 0:01:20]} 32. b4 {[%clk 0:01:05]}  Ng4 {[%clk 0:01:20]} 33. f4 {[%clk 0:00:58]}  h5 {[%clk 0:01:19]} 34. Kd2 {[%clk 0:00:52]}  h4 {[%clk 0:01:19]} 35. Ng1 {[%clk 0:00:46]}  Bg2 {[%clk 0:01:12]} 36. Be2 {[%clk 0:00:41]}  h3 {[%clk 0:01:05]} 37. Nxh3 {[%clk 0:00:33]}  Bxh3 {[%clk 0:01:06]} 38. b5 {[%clk 0:00:32]}  Nf6 {[%clk 0:00:55]} 39. b6 {[%clk 0:00:28]}  Bg2 {[%clk 0:00:51]} 40. a6 {[%clk 0:00:26]}  Nd7 {[%clk 0:00:51]} 41. b7 {[%clk 0:00:26]}  Kc7 {[%clk 0:00:51]} 42. Bb5 {[%clk 0:00:24]}  Nc5 {[%clk 0:00:48]} 43. Ke3 {[%clk 0:00:23]}  f6 {[%clk 0:00:39]} 44. Kd4 {[%clk 0:00:21]}  Nb3+ {[%clk 0:00:37]} 45. Kc3 {[%clk 0:00:20]}  Bd5 {[%clk 0:00:33]} 46. Bd3 {[%clk 0:00:11]}  Nc5 {[%clk 0:00:31]} 47. Bb5 {[%clk 0:00:09]}  g5 {[%clk 0:00:30]} 48. fxg5 {[%clk 0:00:09]}  fxg5 {[%clk 0:00:31]} 49. Kd4 {[%clk 0:00:09]}  Ne4 {[%clk 0:00:28]} 50. Be2 {[%clk 0:00:08]}  Nf6 {[%clk 0:00:24]} 51. Ke5 {[%clk 0:00:08]}  Nd7+ {[%clk 0:00:24]} 52. Kd4 {[%clk 0:00:07]}  Bc6 {[%clk 0:00:23]} 53. Bg4 {[%clk 0:00:07]}  e5+ {[%clk 0:00:23]} 54. Ke3 {[%clk 0:00:07]}  Nf6 {[%clk 0:00:23]} 55. Bf5 {[%clk 0:00:07]}  g4 {[%clk 0:00:21]} 56. Kf2 {[%clk 0:00:08]}  Bd7 {[%clk 0:00:18]} 57. Bd3 {[%clk 0:00:05]}  e4 {[%clk 0:00:18]} 58. Be2 {[%clk 0:00:05]}  Nd5 {[%clk 0:00:13]} 59. Kg3 {[%clk 0:00:05]}  e3 {[%clk 0:00:14]} 60. Bc4 {[%clk 0:00:03]}  Nc3 {[%clk 0:00:14]} 61. Bd3 {[%clk 0:00:02]}  e2 {[%clk 0:00:12]} 0-1


[Site "https://www.chess.com"]

[Event "Titled Tuesday Blitz February 28 Early 2023"]
[White "Real_OceanStorm"]
[Black "Shapiro, Viktor"]
[BlackFideId "4175700"]
[WhiteElo "2772"]
[BlackElo "2132"]
[Result "1-0"]
[Round "10"]
[TimeControl "180+2"]
[Date "2023.02.28"]
[WhiteClock "0:00:04"]
[BlackClock "0:00:06"]

1. d4 {[%clk 0:02:56]}  Nf6 {[%clk 0:03:00]} 2. Nf3 {[%clk 0:02:55]}  e6 {[%clk 0:02:59]} 3. c4 {[%clk 0:02:55]}  c5 {[%clk 0:02:59]} 4. e3 {[%clk 0:02:55]}  b6 {[%clk 0:02:50]} 5. Nc3 {[%clk 0:02:54]}  Bb7 {[%clk 0:02:50]} 6. Be2 {[%clk 0:02:51]}  cxd4 {[%clk 0:02:45]} 7. exd4 {[%clk 0:02:52]}  Bb4 {[%clk 0:02:40]} 8. O-O {[%clk 0:02:45]}  O-O {[%clk 0:02:37]} 9. Qb3 {[%clk 0:02:42]}  a5 {[%clk 0:02:28]} 10. Bg5 {[%clk 0:02:24]}  Nc6 {[%clk 0:02:04]} 11. d5 {[%clk 0:01:49]}  Ne7 {[%clk 0:02:04]} 12. Bxf6 {[%clk 0:01:48]}  gxf6 {[%clk 0:02:04]} 13. a3 {[%clk 0:01:42]}  Bxc3 {[%clk 0:02:00]} 14. Qxc3 {[%clk 0:01:43]}  Ng6 {[%clk 0:01:53]} 15. Rfd1 {[%clk 0:01:13]}  Nf4 {[%clk 0:01:45]} 16. Bf1 {[%clk 0:01:11]}  exd5 {[%clk 0:01:43]} 17. Nh4 {[%clk 0:00:59]}  f5 {[%clk 0:01:27]} 18. Qg3+ {[%clk 0:00:58]}  Ng6 {[%clk 0:01:26]} 19. Nxf5 {[%clk 0:00:59]}  Qf6 {[%clk 0:01:24]} 20. Nd6 {[%clk 0:00:40]}  Bc6 {[%clk 0:01:19]} 21. cxd5 {[%clk 0:00:35]}  Ba4 {[%clk 0:01:18]} 22. Rd3 {[%clk 0:00:33]}  Qxb2 {[%clk 0:01:03]} 23. Re1 {[%clk 0:00:33]}  b5 {[%clk 0:00:55]} 24. Rf3 {[%clk 0:00:29]}  Ra6 {[%clk 0:00:46]} 25. Re7 {[%clk 0:00:16]}  Bc2 {[%clk 0:00:23]} 26. Rxd7 {[%clk 0:00:16]}  Rb6 {[%clk 0:00:17]} 27. Nxf7 {[%clk 0:00:11]}  Rf6 {[%clk 0:00:13]} 28. Qc7 {[%clk 0:00:05]}  Rxf3 {[%clk 0:00:08]} 29. Nh6+ {[%clk 0:00:03]}  Kh8 {[%clk 0:00:06]} 30. Rxh7# {[%clk 0:00:04]} 1-0


[Site "https://www.chess.com"]

[Event "Titled Tuesday Blitz February 28 Early 2023"]
[White "Hambleton, Aman"]
[Black "Demin, Vladimir"]
[WhiteFideId "2606577"]
[BlackFideId "4167457"]
[WhiteElo "2511"]
[BlackElo "2594"]
[Result "0-1"]
[Round "10"]
[TimeControl "180+2"]
[Date "2023.02.28"]
[WhiteClock "0:00:01"]
[BlackClock "0:00:32"]

1. d4 {[%clk 0:03:00]}  d5 {[%clk 0:02:58]} 2. Bf4 {[%clk 0:03:00]}  c5 {[%clk 0:02:57]} 3. e3 {[%clk 0:03:01]}  Nf6 {[%clk 0:02:56]} 4. c3 {[%clk 0:03:01]}  Nc6 {[%clk 0:02:56]} 5. Nd2 {[%clk 0:03:01]}  Bf5 {[%clk 0:02:55]} 6. Qb3 {[%clk 0:03:01]}  Qc8 {[%clk 0:02:55]} 7. Ngf3 {[%clk 0:03:01]}  e6 {[%clk 0:02:54]} 8. Be2 {[%clk 0:02:45]}  c4 {[%clk 0:02:50]} 9. Qd1 {[%clk 0:02:45]}  h6 {[%clk 0:02:49]} 10. O-O {[%clk 0:02:44]}  Be7 {[%clk 0:02:48]} 11. b3 {[%clk 0:02:42]}  b5 {[%clk 0:02:46]} 12. Ne5 {[%clk 0:02:12]}  O-O {[%clk 0:02:44]} 13. bxc4 {[%clk 0:01:55]}  bxc4 {[%clk 0:02:41]} 14. Qa4 {[%clk 0:01:55]}  Nxe5 {[%clk 0:02:41]} 15. Bxe5 {[%clk 0:01:56]}  Nd7 {[%clk 0:02:40]} 16. Bg3 {[%clk 0:01:52]}  Nb6 {[%clk 0:02:34]} 17. Qa5 {[%clk 0:01:47]}  Qd7 {[%clk 0:02:30]} 18. Bd1 {[%clk 0:01:01]}  Rfc8 {[%clk 0:02:24]} 19. Re1 {[%clk 0:00:57]}  Bd3 {[%clk 0:02:19]} 20. Nf3 {[%clk 0:00:42]}  f6 {[%clk 0:02:11]} 21. h3 {[%clk 0:00:41]}  Bd6 {[%clk 0:01:57]} 22. Bxd6 {[%clk 0:00:41]}  Qxd6 {[%clk 0:01:57]} 23. Nd2 {[%clk 0:00:38]}  e5 {[%clk 0:01:52]} 24. Nf3 {[%clk 0:00:19]}  Rc7 {[%clk 0:01:24]} 25. Rc1 {[%clk 0:00:17]}  Rb8 {[%clk 0:01:22]} 26. Be2 {[%clk 0:00:15]}  Nd7 {[%clk 0:01:17]} 27. Bd1 {[%clk 0:00:06]}  Rcb7 {[%clk 0:01:12]} 28. dxe5 {[%clk 0:00:05]}  fxe5 {[%clk 0:01:11]} 29. Nd2 {[%clk 0:00:04]}  Nc5 {[%clk 0:01:00]} 30. Qa3 {[%clk 0:00:04]}  Bg6 {[%clk 0:00:55]} 31. Be2 {[%clk 0:00:03]}  Qc6 {[%clk 0:00:53]} 32. Nf3 {[%clk 0:00:02]}  Re8 {[%clk 0:00:48]} 33. Rcd1 {[%clk 0:00:02]}  Bd3 {[%clk 0:00:48]} 34. Bxd3 {[%clk 0:00:01]}  Nxd3 {[%clk 0:00:44]} 35. Re2 {[%clk 0:00:02]}  Qg6 {[%clk 0:00:36]} 36. Nd2 {[%clk 0:00:01]}  Rb2 {[%clk 0:00:32]} 0-1


[Site "https://www.chess.com"]

[Event "Titled Tuesday Blitz February 28 Early 2023"]
[White "Postny, Evgeny"]
[Black "Gauri, Shankar"]
[WhiteFideId "2804344"]
[BlackFideId "5041350"]
[WhiteElo "2509"]
[BlackElo "2240"]
[Result "1-0"]
[Round "10"]
[TimeControl "180+2"]
[Date "2023.02.28"]
[WhiteClock "0:00:07"]
[BlackClock "0:00:02"]

1. e4 {[%clk 0:02:53]}  e5 {[%clk 0:02:56]} 2. Nf3 {[%clk 0:02:52]}  Nc6 {[%clk 0:02:55]} 3. Bc4 {[%clk 0:02:52]}  Nf6 {[%clk 0:02:54]} 4. Ng5 {[%clk 0:02:52]}  d5 {[%clk 0:02:54]} 5. exd5 {[%clk 0:02:53]}  Na5 {[%clk 0:02:53]} 6. Bb5+ {[%clk 0:02:52]}  c6 {[%clk 0:02:43]} 7. dxc6 {[%clk 0:02:52]}  bxc6 {[%clk 0:02:44]} 8. Be2 {[%clk 0:02:49]}  h6 {[%clk 0:02:39]} 9. Nh3 {[%clk 0:02:49]}  Bd6 {[%clk 0:02:15]} 10. d3 {[%clk 0:02:47]}  Be6 {[%clk 0:02:06]} 11. Nc3 {[%clk 0:02:46]}  Qd7 {[%clk 0:02:04]} 12. Ng1 {[%clk 0:02:46]}  O-O {[%clk 0:01:54]} 13. Nf3 {[%clk 0:02:47]}  c5 {[%clk 0:01:46]} 14. O-O {[%clk 0:02:43]}  Nc6 {[%clk 0:01:46]} 15. Ne4 {[%clk 0:02:43]}  Be7 {[%clk 0:01:39]} 16. Be3 {[%clk 0:02:41]}  c4 {[%clk 0:01:04]} 17. Nc5 {[%clk 0:02:34]}  Bxc5 {[%clk 0:00:58]} 18. Bxc5 {[%clk 0:02:35]}  cxd3 {[%clk 0:00:53]} 19. cxd3 {[%clk 0:02:02]}  Rfe8 {[%clk 0:00:52]} 20. d4 {[%clk 0:01:58]}  e4 {[%clk 0:00:39]} 21. Ne5 {[%clk 0:01:57]}  Nxe5 {[%clk 0:00:37]} 22. dxe5 {[%clk 0:01:58]}  Nd5 {[%clk 0:00:34]} 23. Re1 {[%clk 0:01:48]}  Qb7 {[%clk 0:00:28]} 24. Qd4 {[%clk 0:01:44]}  Nf4 {[%clk 0:00:19]} 25. Bf1 {[%clk 0:01:40]}  Bf5 {[%clk 0:00:19]} 26. Bd6 {[%clk 0:01:28]}  Rac8 {[%clk 0:00:16]} 27. Qe3 {[%clk 0:01:17]}  Nd3 {[%clk 0:00:15]} 28. Re2 {[%clk 0:00:54]}  Qd5 {[%clk 0:00:11]} 29. Rd2 {[%clk 0:00:52]}  Bg6 {[%clk 0:00:11]} 30. f3 {[%clk 0:00:48]}  Qa5 {[%clk 0:00:07]} 31. b4 {[%clk 0:00:32]}  Qa4 {[%clk 0:00:04]} 32. fxe4 {[%clk 0:00:24]}  Nxe5 {[%clk 0:00:04]} 33. Bc5 {[%clk 0:00:22]}  Ng4 {[%clk 0:00:04]} 34. Qb3 {[%clk 0:00:20]}  Qxb3 {[%clk 0:00:04]} 35. axb3 {[%clk 0:00:20]}  Rxe4 {[%clk 0:00:03]} 36. Rxa7 {[%clk 0:00:18]}  Re1 {[%clk 0:00:03]} 37. Rad7 {[%clk 0:00:09]}  Kh7 {[%clk 0:00:03]} 38. h3 {[%clk 0:00:08]}  Rc7 {[%clk 0:00:01]} 39. Rxc7 {[%clk 0:00:06]}  Nf6 {[%clk 0:00:02]} 40. Re7 {[%clk 0:00:05]}  Rb1 {[%clk 0:00:03]} 41. Re3 {[%clk 0:00:05]}  Ne4 {[%clk 0:00:03]} 42. Rde2 {[%clk 0:00:05]}  Nf6 {[%clk 0:00:02]} 43. Re1 {[%clk 0:00:06]}  Rb2 {[%clk 0:00:03]} 44. Bd3 {[%clk 0:00:05]}  Nd5 {[%clk 0:00:02]} 45. Bxg6+ {[%clk 0:00:05]}  Kxg6 {[%clk 0:00:03]} 46. Rf3 {[%clk 0:00:05]}  f6 {[%clk 0:00:03]} 47. Ref1 {[%clk 0:00:05]}  h5 {[%clk 0:00:03]} 48. Kh2 {[%clk 0:00:06]}  Kh7 {[%clk 0:00:02]} 49. b5 {[%clk 0:00:06]}  Kg6 {[%clk 0:00:03]} 50. b6 {[%clk 0:00:07]}  Ra2 {[%clk 0:00:02]} 51. b7 {[%clk 0:00:07]} 1-0


[Site "https://www.chess.com"]

[Event "Titled Tuesday Blitz February 28 Early 2023"]
[White "Pakleza, Zbigniew"]
[Black "Seemann, Jakub"]
[WhiteFideId "1119290"]
[BlackFideId "21874697"]
[WhiteElo "2410"]
[BlackElo "2364"]
[Result "1-0"]
[Round "10"]
[TimeControl "180+2"]
[Date "2023.02.28"]
[WhiteClock "0:00:12"]
[BlackClock "0:01:21"]

1. d4 {[%clk 0:02:55]}  d5 {[%clk 0:02:58]} 2. Bf4 {[%clk 0:02:52]}  Nf6 {[%clk 0:02:58]} 3. e3 {[%clk 0:02:53]}  c5 {[%clk 0:02:50]} 4. c3 {[%clk 0:02:53]}  Nc6 {[%clk 0:02:49]} 5. Nd2 {[%clk 0:02:51]}  e6 {[%clk 0:02:48]} 6. Ngf3 {[%clk 0:02:50]}  cxd4 {[%clk 0:02:48]} 7. cxd4 {[%clk 0:02:50]}  Bd6 {[%clk 0:02:46]} 8. Bg3 {[%clk 0:02:50]}  O-O {[%clk 0:02:43]} 9. Bd3 {[%clk 0:02:50]}  Qe7 {[%clk 0:02:32]} 10. Ne5 {[%clk 0:02:35]}  Nd7 {[%clk 0:02:23]} 11. f4 {[%clk 0:02:33]}  f6 {[%clk 0:02:16]} 12. Nxc6 {[%clk 0:02:09]}  bxc6 {[%clk 0:02:14]} 13. O-O {[%clk 0:02:10]}  c5 {[%clk 0:02:14]} 14. Rc1 {[%clk 0:01:55]}  c4 {[%clk 0:02:15]} 15. Bb1 {[%clk 0:01:54]}  Rb8 {[%clk 0:02:15]} 16. b3 {[%clk 0:01:54]}  cxb3 {[%clk 0:02:16]} 17. Nxb3 {[%clk 0:01:52]}  Ba6 {[%clk 0:02:17]} 18. Rf2 {[%clk 0:01:50]}  Bc4 {[%clk 0:02:16]} 19. Na5 {[%clk 0:01:32]}  Rfc8 {[%clk 0:02:14]} 20. Nxc4 {[%clk 0:01:30]}  dxc4 {[%clk 0:02:14]} 21. f5 {[%clk 0:01:10]}  Bxg3 {[%clk 0:02:13]} 22. hxg3 {[%clk 0:01:11]}  e5 {[%clk 0:02:12]} 23. Rfc2 {[%clk 0:01:02]}  exd4 {[%clk 0:02:11]} 24. Qxd4 {[%clk 0:01:03]}  Ne5 {[%clk 0:02:10]} 25. Re2 {[%clk 0:00:35]}  Rd8 {[%clk 0:02:09]} 26. Qc3 {[%clk 0:00:32]}  Qc5 {[%clk 0:02:10]} 27. Be4 {[%clk 0:00:29]}  Qb4 {[%clk 0:02:04]} 28. Rec2 {[%clk 0:00:26]}  Qxc3 {[%clk 0:02:03]} 29. Rxc3 {[%clk 0:00:26]}  Rb2 {[%clk 0:01:56]} 30. Ra3 {[%clk 0:00:25]}  Rd7 {[%clk 0:01:48]} 31. Ra6 {[%clk 0:00:24]}  h5 {[%clk 0:01:46]} 32. a4 {[%clk 0:00:23]}  Kh7 {[%clk 0:01:34]} 33. Re6 {[%clk 0:00:21]}  Kh6 {[%clk 0:01:35]} 34. Rxe5 {[%clk 0:00:17]}  fxe5 {[%clk 0:01:33]} 35. Rxc4 {[%clk 0:00:17]}  Kg5 {[%clk 0:01:28]} 36. a5 {[%clk 0:00:13]}  Ra2 {[%clk 0:01:21]} 37. Rc6 {[%clk 0:00:12]} 1-0


[Site "https://www.chess.com"]

[Event "Titled Tuesday Blitz February 28 Early 2023"]
[White "Arabidze, Meri"]
[Black "Fernandez Guillen, Ernesto J."]
[WhiteFideId "13604040"]
[BlackFideId "3512428"]
[WhiteElo "2405"]
[BlackElo "2423"]
[Result "1-0"]
[Round "10"]
[TimeControl "180+2"]
[Date "2023.02.28"]
[WhiteClock "0:00:08"]
[BlackClock "0:00:10"]

1. d4 {[%clk 0:03:00]}  Nf6 {[%clk 0:02:56]} 2. c4 {[%clk 0:03:01]}  g6 {[%clk 0:02:53]} 3. g3 {[%clk 0:03:01]}  Bg7 {[%clk 0:02:53]} 4. Bg2 {[%clk 0:03:02]}  O-O {[%clk 0:02:54]} 5. Nc3 {[%clk 0:03:01]}  d5 {[%clk 0:02:55]} 6. cxd5 {[%clk 0:03:00]}  c6 {[%clk 0:02:54]} 7. dxc6 {[%clk 0:03:00]}  Nxc6 {[%clk 0:02:55]} 8. Nf3 {[%clk 0:02:58]}  e5 {[%clk 0:02:45]} 9. d5 {[%clk 0:02:52]}  Nb4 {[%clk 0:02:24]} 10. e4 {[%clk 0:02:52]}  Nxe4 {[%clk 0:02:18]} 11. Nxe4 {[%clk 0:02:50]}  f5 {[%clk 0:02:18]} 12. O-O {[%clk 0:02:02]}  fxe4 {[%clk 0:02:18]} 13. Ng5 {[%clk 0:02:02]}  Qxd5 {[%clk 0:01:52]} 14. Qxd5+ {[%clk 0:01:44]}  Nxd5 {[%clk 0:01:53]} 15. Bxe4 {[%clk 0:01:44]}  Nf6 {[%clk 0:01:52]} 16. Bc2 {[%clk 0:01:44]}  Bf5 {[%clk 0:01:52]} 17. Bb3+ {[%clk 0:01:41]}  Kh8 {[%clk 0:01:51]} 18. Nf7+ {[%clk 0:01:40]}  Rxf7 {[%clk 0:01:51]} 19. Bxf7 {[%clk 0:01:41]}  e4 {[%clk 0:01:48]} 20. Bf4 {[%clk 0:01:28]}  Rf8 {[%clk 0:01:42]} 21. Bc4 {[%clk 0:01:27]}  Nh5 {[%clk 0:01:34]} 22. Be3 {[%clk 0:01:27]}  a6 {[%clk 0:01:27]} 23. a4 {[%clk 0:01:23]}  Nf6 {[%clk 0:01:12]} 24. Rad1 {[%clk 0:01:12]}  Ng4 {[%clk 0:01:10]} 25. Bd4 {[%clk 0:01:10]}  Ne5 {[%clk 0:01:02]} 26. Bxe5 {[%clk 0:01:10]}  Bxe5 {[%clk 0:01:03]} 27. b3 {[%clk 0:00:59]}  h5 {[%clk 0:01:03]} 28. Rd5 {[%clk 0:00:49]}  Bc7 {[%clk 0:01:03]} 29. a5 {[%clk 0:00:35]}  Kg7 {[%clk 0:00:59]} 30. Rfd1 {[%clk 0:00:33]}  Kh6 {[%clk 0:00:59]} 31. Rc5 {[%clk 0:00:25]}  Bd8 {[%clk 0:00:59]} 32. Bd5 {[%clk 0:00:20]}  b6 {[%clk 0:00:36]} 33. Rc6 {[%clk 0:00:15]}  bxa5 {[%clk 0:00:34]} 34. Rxa6 {[%clk 0:00:16]}  h4 {[%clk 0:00:22]} 35. Re1 {[%clk 0:00:15]}  h3 {[%clk 0:00:10]} 36. Bxe4 {[%clk 0:00:13]}  Re8 {[%clk 0:00:11]} 37. f3 {[%clk 0:00:13]}  Be7 {[%clk 0:00:10]} 38. Bxf5 {[%clk 0:00:10]}  Bc5+ {[%clk 0:00:10]} 39. Kf1 {[%clk 0:00:11]}  Rg8 {[%clk 0:00:10]} 40. Ree6 {[%clk 0:00:10]}  Rb8 {[%clk 0:00:10]} 41. Rxg6+ {[%clk 0:00:10]}  Kh5 {[%clk 0:00:10]} 42. Bg4# {[%clk 0:00:08]} 1-0


[Site "https://www.chess.com"]

[Event "Titled Tuesday Blitz February 28 Early 2023"]
[White "Sielecki, Christof"]
[Black "Goltsev, Dmitry"]
[WhiteFideId "4620437"]
[BlackFideId "24176710"]
[WhiteElo "2443"]
[BlackElo "2302"]
[Result "1-0"]
[Round "10"]
[TimeControl "180+2"]
[Date "2023.02.28"]
[WhiteClock "0:00:19"]
[BlackClock "0:00:34"]

1. e4 {[%clk 0:03:00]}  e6 {[%clk 0:03:00]} 2. d4 {[%clk 0:03:00]}  d5 {[%clk 0:03:01]} 3. Nd2 {[%clk 0:03:01]}  c5 {[%clk 0:03:01]} 4. Ngf3 {[%clk 0:03:00]}  Nf6 {[%clk 0:03:01]} 5. exd5 {[%clk 0:02:58]}  exd5 {[%clk 0:03:02]} 6. Bb5+ {[%clk 0:02:58]}  Nc6 {[%clk 0:03:02]} 7. O-O {[%clk 0:02:57]}  Be7 {[%clk 0:03:02]} 8. dxc5 {[%clk 0:02:57]}  Bxc5 {[%clk 0:03:03]} 9. Nb3 {[%clk 0:02:55]}  Bb6 {[%clk 0:03:03]} 10. Re1+ {[%clk 0:02:53]}  Be6 {[%clk 0:03:03]} 11. Nbd4 {[%clk 0:02:51]}  O-O {[%clk 0:03:03]} 12. Bxc6 {[%clk 0:02:51]}  bxc6 {[%clk 0:03:03]} 13. Nxc6 {[%clk 0:02:52]}  Qc7 {[%clk 0:03:03]} 14. Ncd4 {[%clk 0:02:52]}  Ne4 {[%clk 0:03:03]} 15. c3 {[%clk 0:02:44]}  Bg4 {[%clk 0:03:02]} 16. Be3 {[%clk 0:02:42]}  Rfe8 {[%clk 0:03:03]} 17. h3 {[%clk 0:02:42]}  Bd7 {[%clk 0:03:01]} 18. Nb3 {[%clk 0:02:36]}  Bxh3 {[%clk 0:02:40]} 19. gxh3 {[%clk 0:02:29]}  Nxf2 {[%clk 0:02:40]} 20. Kxf2 {[%clk 0:02:24]}  Bxe3+ {[%clk 0:02:28]} 21. Rxe3 {[%clk 0:02:24]}  Rxe3 {[%clk 0:02:29]} 22. Kxe3 {[%clk 0:02:24]}  Qg3 {[%clk 0:02:30]} 23. Nd4 {[%clk 0:02:12]}  Re8+ {[%clk 0:02:28]} 24. Kd3 {[%clk 0:02:04]}  Qxh3 {[%clk 0:02:07]} 25. Qh1 {[%clk 0:01:52]}  Qg4 {[%clk 0:01:58]} 26. Re1 {[%clk 0:01:47]}  Rb8 {[%clk 0:01:53]} 27. b3 {[%clk 0:01:42]}  Rc8 {[%clk 0:01:51]} 28. Qh4 {[%clk 0:01:32]}  Qg2 {[%clk 0:01:48]} 29. Rg1 {[%clk 0:01:18]}  Qb2 {[%clk 0:01:40]} 30. Rxg7+ {[%clk 0:01:12]}  Kxg7 {[%clk 0:01:35]} 31. Qg4+ {[%clk 0:01:08]}  Kf6 {[%clk 0:01:19]} 32. Qxc8 {[%clk 0:01:05]}  Qb1+ {[%clk 0:01:18]} 33. Kd2 {[%clk 0:00:57]}  Qxa2+ {[%clk 0:01:18]} 34. Nc2 {[%clk 0:00:54]}  Qxb3 {[%clk 0:01:15]} 35. Qd8+ {[%clk 0:00:54]}  Kg7 {[%clk 0:01:11]} 36. Qg5+ {[%clk 0:00:53]}  Kf8 {[%clk 0:01:09]} 37. Ne5 {[%clk 0:00:49]}  Qb7 {[%clk 0:01:08]} 38. Qf6 {[%clk 0:00:46]}  a5 {[%clk 0:01:04]} 39. Qh8+ {[%clk 0:00:42]}  Ke7 {[%clk 0:01:04]} 40. Qxh7 {[%clk 0:00:43]}  Ke6 {[%clk 0:01:03]} 41. Nd3 {[%clk 0:00:42]}  Qb1 {[%clk 0:00:58]} 42. Nd4+ {[%clk 0:00:40]}  Ke7 {[%clk 0:00:58]} 43. Qh4+ {[%clk 0:00:39]}  Kd7 {[%clk 0:00:56]} 44. Ne5+ {[%clk 0:00:36]}  Kc8 {[%clk 0:00:53]} 45. Qg4+ {[%clk 0:00:36]}  Kb8 {[%clk 0:00:50]} 46. Qg8+ {[%clk 0:00:35]}  Kb7 {[%clk 0:00:50]} 47. Qxf7+ {[%clk 0:00:35]}  Kb6 {[%clk 0:00:51]} 48. Qe6+ {[%clk 0:00:33]}  Ka7 {[%clk 0:00:48]} 49. Qd7+ {[%clk 0:00:32]}  Ka6 {[%clk 0:00:46]} 50. Nd3 {[%clk 0:00:26]}  Qa2+ {[%clk 0:00:39]} 51. Ke3 {[%clk 0:00:24]}  Qc4 {[%clk 0:00:36]} 52. Qd6+ {[%clk 0:00:22]}  Ka7 {[%clk 0:00:35]} 53. Nc6+ {[%clk 0:00:19]}  Kb6 {[%clk 0:00:33]} 54. Nce5+ {[%clk 0:00:19]}  Kb5 {[%clk 0:00:33]} 55. Nxc4 {[%clk 0:00:19]}  dxc4 {[%clk 0:00:34]} 56. Qc5+ {[%clk 0:00:19]}  Ka4 {[%clk 0:00:35]} 57. Qxc4+ {[%clk 0:00:19]}  Ka3 {[%clk 0:00:36]} 58. Qb5 {[%clk 0:00:19]}  Ka2 {[%clk 0:00:34]} 59. Qb2# {[%clk 0:00:19]} 1-0


[Site "https://www.chess.com"]

[Event "Titled Tuesday Blitz February 28 Early 2023"]
[White "Derix, Bernhard"]
[Black "Costachi, Mihnea"]
[WhiteFideId "4642368"]
[BlackFideId "1217518"]
[WhiteElo "2601"]
[BlackElo "2456"]
[Result "0-1"]
[Round "10"]
[TimeControl "180+2"]
[Date "2023.02.28"]
[WhiteClock "0:00:30"]
[BlackClock "0:00:47"]

1. e4 {[%clk 0:03:00]}  e5 {[%clk 0:02:59]} 2. Nf3 {[%clk 0:03:00]}  Nc6 {[%clk 0:03:00]} 3. Bb5 {[%clk 0:02:59]}  a6 {[%clk 0:03:00]} 4. Bxc6 {[%clk 0:02:59]}  dxc6 {[%clk 0:03:00]} 5. O-O {[%clk 0:03:00]}  Bg4 {[%clk 0:03:00]} 6. h3 {[%clk 0:03:00]}  h5 {[%clk 0:03:01]} 7. d3 {[%clk 0:03:00]}  Qf6 {[%clk 0:03:02]} 8. Nbd2 {[%clk 0:02:59]}  g5 {[%clk 0:03:01]} 9. Re1 {[%clk 0:02:53]}  Bd6 {[%clk 0:02:19]} 10. d4 {[%clk 0:02:50]}  Bxf3 {[%clk 0:01:59]} 11. Nxf3 {[%clk 0:02:48]}  g4 {[%clk 0:02:00]} 12. dxe5 {[%clk 0:02:25]}  Bxe5 {[%clk 0:02:00]} 13. Bg5 {[%clk 0:02:12]}  Qe6 {[%clk 0:01:55]} 14. hxg4 {[%clk 0:02:00]}  hxg4 {[%clk 0:01:53]} 15. Nxe5 {[%clk 0:02:00]}  Qxe5 {[%clk 0:01:52]} 16. Qxg4 {[%clk 0:02:00]}  Ne7 {[%clk 0:01:32]} 17. Rad1 {[%clk 0:01:57]}  Ng6 {[%clk 0:01:23]} 18. g3 {[%clk 0:01:35]}  Kf8 {[%clk 0:01:17]} 19. Rd7 {[%clk 0:01:26]}  Re8 {[%clk 0:01:11]} 20. Qf3 {[%clk 0:01:18]}  Qe6 {[%clk 0:01:05]} 21. Rxc7 {[%clk 0:01:16]}  Ne5 {[%clk 0:01:06]} 22. Qa3+ {[%clk 0:00:31]}  Kg8 {[%clk 0:01:04]} 23. Re7 {[%clk 0:00:29]}  Rxe7 {[%clk 0:01:00]} 24. Qxe7 {[%clk 0:00:29]}  Qxe7 {[%clk 0:00:55]} 25. Bxe7 {[%clk 0:00:29]}  Nf3+ {[%clk 0:00:55]} 26. Kf1 {[%clk 0:00:30]}  Rh1+ {[%clk 0:00:48]} 27. Ke2 {[%clk 0:00:30]}  Nxe1 {[%clk 0:00:47]} 0-1


[Site "https://www.chess.com"]